[Event "*** Titled Tuesday Blitz"]
[Site "Chess.com"]
[Date "2020.01.07"]
[Round "2"]
[White "Incognito_Knight"]
[Black "Chessmatus"]
[Result "1-0"]
[WhiteElo "2744"]
[BlackElo "2344"]
[TimeControl "180+2"]
[EndTime "13:25:25 PST"]
[Termination "Incognito_Knight won by resignation"]

1. e4 {[%clk 0:03:01.9]} 1... c5 {[%clk 0:03:00.5]} 2. Nf3 {[%clk 0:03:02.4]}
2... d6 {[%clk 0:03:01.6]} 3. d4 {[%clk 0:03:03.9]} 3... cxd4 {[%clk 0:03:02.8]}
4. Nxd4 {[%clk 0:03:05.8]} 4... Nf6 {[%clk 0:03:03.9]} 5. Nc3 {[%clk 0:03:07.2]}
5... a6 {[%clk 0:03:05.2]} 6. Be2 {[%clk 0:03:08.6]} 6... e5 {[%clk 0:03:06.3]}
7. Nb3 {[%clk 0:03:09.7]} 7... Be7 {[%clk 0:03:07.5]} 8. O-O {[%clk 0:03:10.6]}
8... O-O {[%clk 0:03:08.5]} 9. Re1 {[%clk 0:03:12.2]} 9... Be6 {[%clk
0:03:05.9]} 10. Bf3 {[%clk 0:03:13.1]} 10... Nbd7 {[%clk 0:03:06.7]} 11. a4
{[%clk 0:03:14.2]} 11... Nb6 {[%clk 0:03:07.8]} 12. Nd2 {[%clk 0:03:12.4]} 12...
Rc8 {[%clk 0:03:05.6]} 13. Nf1 {[%clk 0:03:02.6]} 13... Nc4 {[%clk 0:02:45.5]}
14. b3 {[%clk 0:02:54.3]} 14... Nb6 {[%clk 0:02:46.2]} 15. Bb2 {[%clk
0:02:53.1]} 15... Rc5 {[%clk 0:02:47]} 16. Ne3 {[%clk 0:02:47.7]} 16... Qc7
{[%clk 0:02:36]} 17. Ncd5 {[%clk 0:02:47.7]} 17... Bxd5 {[%clk 0:02:30.1]} 18.
exd5 {[%clk 0:02:47.8]} 18... Qc8 {[%clk 0:02:27.6]} 19. a5 {[%clk 0:02:40.4]}
19... Nbd7 {[%clk 0:02:17.5]} 20. Ba3 {[%clk 0:02:32]} 20... Rxa5 {[%clk
0:02:01.7]} 21. Nf5 {[%clk 0:02:29.4]} 21... Qd8 {[%clk 0:01:53.8]} 22. Nxe7+
{[%clk 0:02:14.2]} 22... Qxe7 {[%clk 0:01:52.8]} 23. Bxd6 {[%clk 0:02:13.9]}
23... Rxa1 {[%clk 0:01:52.3]} 24. Bxe7 {[%clk 0:02:14.6]} 24... Rxd1 {[%clk
0:01:51.2]} 25. Rxd1 {[%clk 0:02:16.5]} 25... Re8 {[%clk 0:01:52.1]} 26. Ba3
{[%clk 0:02:13.7]} 26... e4 {[%clk 0:01:52.3]} 27. Be2 {[%clk 0:02:14.6]} 27...
Re5 {[%clk 0:01:50.1]} 28. c4 {[%clk 0:02:14.7]} 28... a5 {[%clk 0:01:33.7]} 29.
f4 {[%clk 0:02:12.8]} 29... exf3 {[%clk 0:01:30.1]} 30. Bxf3 {[%clk 0:02:13.1]}
30... b6 {[%clk 0:01:30]} 31. Kf2 {[%clk 0:02:06.1]} 31... Ne4+ {[%clk
0:01:27.8]} 32. Kf1 {[%clk 0:01:40.9]} 32... Ng5 {[%clk 0:01:17.2]} 33. Bg4
{[%clk 0:01:28.4]} 33... f5 {[%clk 0:01:11.1]} 34. Be2 {[%clk 0:01:29.4]} 34...
Ne4 {[%clk 0:01:07.1]} 35. Bb2 {[%clk 0:01:29]} 35... Re8 {[%clk 0:01:04.8]} 36.
Bd4 {[%clk 0:01:29.8]} 36... Nec5 {[%clk 0:00:57.9]} 37. Rb1 {[%clk 0:01:27.6]}
37... Re4 {[%clk 0:00:55.3]} 38. Bf2 {[%clk 0:01:24.2]} 38... Re8 {[%clk
0:00:33.7]} 39. b4 {[%clk 0:01:20.7]} 39... axb4 {[%clk 0:00:31.3]} 40. Rxb4
{[%clk 0:01:22.6]} 40... Ra8 {[%clk 0:00:29.5]} 41. Bd4 {[%clk 0:01:14.7]} 41...
Kf7 {[%clk 0:00:20]} 42. Rb1 {[%clk 0:01:07.6]} 42... Ra5 {[%clk 0:00:20.7]} 43.
Bf3 {[%clk 0:01:04.3]} 43... g6 {[%clk 0:00:21.6]} 44. Re1 {[%clk 0:01:03]}
44... Ra4 {[%clk 0:00:22]} 45. d6 {[%clk 0:01:03.5]} 45... Rxc4 {[%clk
0:00:21.9]} 46. Bd5+ {[%clk 0:01:04.4]} 1-0

[Event "*** Titled Tuesday Blitz"]
[Site "Chess.com"]
[Date "2020.01.07"]
[Round "2"]
[White "AndrewDGreen"]
[Black "econpower"]
[Result "0-1"]
[WhiteElo "2224"]
[BlackElo "2603"]
[TimeControl "180+2"]
[EndTime "13:25:28 PST"]
[Termination "econpower won by resignation"]

1. d4 {[%clk 0:03:01.9]} 1... d6 {[%clk 0:03:00.7]} 2. e4 {[%clk 0:03:02.6]}
2... Nf6 {[%clk 0:03:01.6]} 3. Nc3 {[%clk 0:03:03]} 3... e5 {[%clk 0:03:00.9]}
4. Nf3 {[%clk 0:03:03.3]} 4... Nbd7 {[%clk 0:02:59.9]} 5. Bc4 {[%clk 0:03:03.4]}
5... Be7 {[%clk 0:03:01.4]} 6. a4 {[%clk 0:03:04.1]} 6... O-O {[%clk 0:03:02.5]}
7. O-O {[%clk 0:03:05.2]} 7... c6 {[%clk 0:03:04]} 8. h3 {[%clk 0:03:04.9]} 8...
exd4 {[%clk 0:03:04.3]} 9. Qxd4 {[%clk 0:03:03.1]} 9... Qc7 {[%clk 0:03:04.5]}
10. Bf4 {[%clk 0:03:01.9]} 10... Ne8 {[%clk 0:03:05.5]} 11. Rad1 {[%clk
0:02:54.6]} 11... Bf6 {[%clk 0:03:06.2]} 12. Qd2 {[%clk 0:02:55.1]} 12... Ne5
{[%clk 0:03:07.1]} 13. Be2 {[%clk 0:02:49.1]} 13... Be6 {[%clk 0:03:07]} 14. b3
{[%clk 0:02:39.8]} 14... Rd8 {[%clk 0:03:02.1]} 15. Nd4 {[%clk 0:02:27.4]} 15...
Ng6 {[%clk 0:02:47.6]} 16. Bh2 {[%clk 0:02:15.6]} 16... Bc8 {[%clk 0:02:42.1]}
17. Kh1 {[%clk 0:01:52.8]} 17... Qb6 {[%clk 0:02:36]} 18. f4 {[%clk 0:01:43.8]}
18... a6 {[%clk 0:02:24.8]} 19. Bf3 {[%clk 0:01:18.6]} 19... Nh4 {[%clk
0:01:25.5]} 20. Be2 {[%clk 0:01:13.1]} 20... Qb4 {[%clk 0:01:23.6]} 21. Bg1
{[%clk 0:01:06.5]} 21... c5 {[%clk 0:01:07]} 22. Qd3 {[%clk 0:00:24.9]} 22...
Bxd4 {[%clk 0:01:03.8]} 23. Nd5 {[%clk 0:00:21]} 23... Qa5 {[%clk 0:01:03.7]}
24. Bxd4 {[%clk 0:00:19]} 24... cxd4 {[%clk 0:01:04.6]} 25. Qg3 {[%clk
0:00:11.5]} 25... Ng6 {[%clk 0:00:55.2]} 26. f5 {[%clk 0:00:05.3]} 26... Ne5
{[%clk 0:00:55.2]} 27. b4 {[%clk 0:00:06.6]} 27... Qxa4 {[%clk 0:00:55]} 28. Ra1
{[%clk 0:00:08.1]} 28... Qxc2 {[%clk 0:00:54.4]} 29. Bf3 {[%clk 0:00:04.5]}
29... Kh8 {[%clk 0:00:47.9]} 30. f6 {[%clk 0:00:05.1]} 30... Nxf6 {[%clk
0:00:46.6]} 31. Nxf6 {[%clk 0:00:05.9]} 31... gxf6 {[%clk 0:00:48.1]} 32. Qh4
{[%clk 0:00:07.5]} 32... Ng6 {[%clk 0:00:41.6]} 33. Qxf6+ {[%clk 0:00:08.6]}
33... Kg8 {[%clk 0:00:43.3]} 34. Rac1 {[%clk 0:00:08.4]} 34... Qd2 {[%clk
0:00:42.9]} 35. Rc7 {[%clk 0:00:08.1]} 35... Qf4 {[%clk 0:00:43.4]} 36. Qxf4
{[%clk 0:00:04.6]} 36... Nxf4 {[%clk 0:00:44.4]} 37. Bd1 {[%clk 0:00:03.4]}
37... Ne6 {[%clk 0:00:45.4]} 38. Rc2 {[%clk 0:00:03.7]} 38... b5 {[%clk
0:00:44.6]} 39. Ra2 {[%clk 0:00:04.2]} 39... Bb7 {[%clk 0:00:45.6]} 40. Raf2
{[%clk 0:00:04.2]} 0-1

[Event "*** Titled Tuesday Blitz"]
[Site "Chess.com"]
[Date "2020.01.07"]
[Round "2"]
[White "Orest_Vovk"]
[Black "jncool68"]
[Result "1-0"]
[WhiteElo "2431"]
[BlackElo "2693"]
[TimeControl "180+2"]
[EndTime "13:25:29 PST"]
[Termination "Orest_Vovk won by resignation"]

1. g4 {[%clk 0:03:01.9]} 1... d5 {[%clk 0:02:59]} 2. Bg2 {[%clk 0:03:02]} 2...
c6 {[%clk 0:02:59.3]} 3. h3 {[%clk 0:03:03.1]} 3... h5 {[%clk 0:02:59.7]} 4. g5
{[%clk 0:03:03.3]} 4... e5 {[%clk 0:02:59.8]} 5. d4 {[%clk 0:03:04.2]} 5... e4
{[%clk 0:03:00.4]} 6. c4 {[%clk 0:03:05.3]} 6... Be6 {[%clk 0:02:57.3]} 7. Nc3
{[%clk 0:03:05]} 7... Nd7 {[%clk 0:02:53.6]} 8. Qb3 {[%clk 0:03:04.4]} 8... Qb6
{[%clk 0:02:52.2]} 9. c5 {[%clk 0:03:04.9]} 9... Qc7 {[%clk 0:02:50.3]} 10. h4
{[%clk 0:02:59.2]} 10... Ne7 {[%clk 0:02:50.2]} 11. Bh3 {[%clk 0:02:51.1]} 11...
Ng6 {[%clk 0:02:43.1]} 12. Bxe6 {[%clk 0:02:50.2]} 12... fxe6 {[%clk 0:02:43.9]}
13. Qa4 {[%clk 0:02:35.1]} 13... Be7 {[%clk 0:02:42]} 14. b4 {[%clk 0:02:31.6]}
14... O-O {[%clk 0:02:42.7]} 15. Be3 {[%clk 0:02:24.6]} 15... b5 {[%clk
0:02:38.1]} 16. Qd1 {[%clk 0:01:57.1]} 16... a5 {[%clk 0:02:38.3]} 17. a3 {[%clk
0:01:58]} 17... e5 {[%clk 0:02:39.3]} 18. Rb1 {[%clk 0:01:41.3]} 18... axb4
{[%clk 0:02:39.8]} 19. axb4 {[%clk 0:01:42.1]} 19... exd4 {[%clk 0:02:40.5]} 20.
Qxd4 {[%clk 0:01:36.9]} 20... Nde5 {[%clk 0:02:41.2]} 21. Nxd5 {[%clk
0:01:28.4]} 21... cxd5 {[%clk 0:02:39.8]} 22. Qxd5+ {[%clk 0:01:30.3]} 22... Kh8
{[%clk 0:02:38.3]} 23. Qxe4 {[%clk 0:01:29.7]} 23... Qc6 {[%clk 0:02:39.1]} 24.
Qxc6 {[%clk 0:01:26.3]} 24... Nxc6 {[%clk 0:02:41]} 25. Nf3 {[%clk 0:01:27.7]}
25... Ra4 {[%clk 0:02:40.7]} 26. Bd2 {[%clk 0:01:20.9]} 26... Nf4 {[%clk
0:02:41.5]} 27. Kf1 {[%clk 0:00:47.9]} 27... Nd5 {[%clk 0:02:22.4]} 28. Rh3
{[%clk 0:00:41]} 28... Ndxb4 {[%clk 0:02:21.4]} 29. Bxb4 {[%clk 0:00:40.6]}
29... Rxb4 {[%clk 0:02:22.6]} 30. Rxb4 {[%clk 0:00:41.1]} 30... Nxb4 {[%clk
0:02:24.5]} 31. Ne5 {[%clk 0:00:41.9]} 31... Kg8 {[%clk 0:02:24.9]} 32. Ng6
{[%clk 0:00:25.9]} 32... Rf7 {[%clk 0:02:19.3]} 33. Nxe7+ {[%clk 0:00:20.7]}
33... Rxe7 {[%clk 0:02:21.2]} 34. Rb3 {[%clk 0:00:22.3]} 34... Re4 {[%clk
0:02:21.9]} 35. f3 {[%clk 0:00:16.1]} 35... Rxh4 {[%clk 0:02:22.6]} 36. e4
{[%clk 0:00:17.3]} 36... Nd3 {[%clk 0:02:17.6]} 37. Rxd3 {[%clk 0:00:15.3]}
37... Rh1+ {[%clk 0:02:16.6]} 38. Kg2 {[%clk 0:00:11.9]} 38... Rc1 {[%clk
0:02:17.6]} 39. Rd8+ {[%clk 0:00:10.4]} 39... Kf7 {[%clk 0:02:18.5]} 40. Rc8
{[%clk 0:00:11.2]} 40... b4 {[%clk 0:02:19.7]} 41. f4 {[%clk 0:00:10]} 41... Rc4
{[%clk 0:02:15.3]} 42. Kf3 {[%clk 0:00:07.4]} 42... Rc3+ {[%clk 0:02:16.8]} 43.
Kg2 {[%clk 0:00:08.3]} 43... b3 {[%clk 0:02:16.5]} 44. Rb8 {[%clk 0:00:08.4]}
44... Ke6 {[%clk 0:02:13.1]} 45. f5+ {[%clk 0:00:08.7]} 45... Kd7 {[%clk
0:02:14.3]} 46. f6 {[%clk 0:00:08.5]} 46... gxf6 {[%clk 0:02:15.4]} 47. g6
{[%clk 0:00:09.6]} 47... h4 {[%clk 0:02:15.3]} 48. g7 {[%clk 0:00:09.9]} 48...
Rg3+ {[%clk 0:02:13.8]} 49. Kh2 {[%clk 0:00:10.6]} 49... Rxg7 {[%clk 0:02:07.4]}
50. Rb7+ {[%clk 0:00:11.3]} 50... Kc6 {[%clk 0:02:09.1]} 51. Rxg7 {[%clk
0:00:13.2]} 51... Kxc5 {[%clk 0:02:10.2]} 52. Rb7 {[%clk 0:00:13.2]} 52... Kc4
{[%clk 0:02:11.3]} 53. Kh3 {[%clk 0:00:13.1]} 1-0

[Event "*** Titled Tuesday Blitz"]
[Site "Chess.com"]
[Date "2020.01.07"]
[Round "2"]
[White "SavelijTartakover"]
[Black "ChessBitl"]
[Result "1-0"]
[WhiteElo "2710"]
[BlackElo "2379"]
[TimeControl "180+2"]
[EndTime "13:25:30 PST"]
[Termination "SavelijTartakover won by resignation"]

1. d4 {[%clk 0:02:53]} 1... d5 {[%clk 0:03:00.5]} 2. c4 {[%clk 0:02:52.7]} 2...
dxc4 {[%clk 0:03:01.6]} 3. e3 {[%clk 0:02:53.1]} 3... Nf6 {[%clk 0:03:02.1]} 4.
Bxc4 {[%clk 0:02:53.7]} 4... e6 {[%clk 0:03:03.6]} 5. Nf3 {[%clk 0:02:54.5]}
5... a6 {[%clk 0:03:05.1]} 6. O-O {[%clk 0:02:54.5]} 6... c5 {[%clk 0:03:06.6]}
7. b3 {[%clk 0:02:55.2]} 7... b5 {[%clk 0:03:06.7]} 8. Be2 {[%clk 0:02:55.7]}
8... Bb7 {[%clk 0:03:08.1]} 9. a4 {[%clk 0:02:55.8]} 9... b4 {[%clk 0:03:05]}
10. Bb2 {[%clk 0:02:56.2]} 10... Nbd7 {[%clk 0:03:00.9]} 11. Nbd2 {[%clk
0:02:56.8]} 11... Be7 {[%clk 0:02:56.8]} 12. Rc1 {[%clk 0:02:57.2]} 12... O-O
{[%clk 0:02:57.8]} 13. Nc4 {[%clk 0:02:57.9]} 13... Rc8 {[%clk 0:02:54.2]} 14.
Nfe5 {[%clk 0:02:58.2]} 14... Nxe5 {[%clk 0:02:52.5]} 15. dxe5 {[%clk
0:02:47.9]} 15... Nd5 {[%clk 0:02:46]} 16. Bf3 {[%clk 0:02:46.9]} 16... Ba8
{[%clk 0:02:38.2]} 17. Qe2 {[%clk 0:02:44.5]} 17... Qc7 {[%clk 0:02:27.1]} 18.
Rfd1 {[%clk 0:02:43.3]} 18... Rfd8 {[%clk 0:02:27.5]} 19. g3 {[%clk 0:02:36.6]}
19... Nb6 {[%clk 0:02:22.8]} 20. Bxa8 {[%clk 0:02:12.4]} 20... Rxa8 {[%clk
0:02:23.2]} 21. Nxb6 {[%clk 0:02:03.4]} 21... Qxb6 {[%clk 0:02:23.9]} 22. Qc4
{[%clk 0:02:01]} 22... Qc6 {[%clk 0:02:07.7]} 23. e4 {[%clk 0:01:58.3]} 23...
Rxd1+ {[%clk 0:02:00.6]} 24. Rxd1 {[%clk 0:01:58.4]} 24... Rd8 {[%clk
0:02:02.1]} 25. Rxd8+ {[%clk 0:01:58.4]} 25... Bxd8 {[%clk 0:02:02.2]} 26. Kf1
{[%clk 0:01:55.1]} 26... Be7 {[%clk 0:01:59.7]} 27. Ke2 {[%clk 0:01:55.9]} 27...
Kf8 {[%clk 0:01:56.4]} 28. f4 {[%clk 0:01:56.5]} 28... Ke8 {[%clk 0:01:56.2]}
29. f5 {[%clk 0:01:50.1]} 29... Kd7 {[%clk 0:01:46.6]} 30. g4 {[%clk 0:01:45.3]}
30... Bg5 {[%clk 0:01:42.2]} 31. Kf3 {[%clk 0:01:37.9]} 31... Ke7 {[%clk
0:01:37.6]} 32. Bd4 {[%clk 0:01:35.7]} 32... Ke8 {[%clk 0:01:20.2]} 33. Qxc5
{[%clk 0:01:31.7]} 33... Qxc5 {[%clk 0:01:16.8]} 34. Bxc5 {[%clk 0:01:33.6]}
34... Be7 {[%clk 0:01:16.7]} 35. Bxe7 {[%clk 0:01:24.9]} 35... Kxe7 {[%clk
0:01:17]} 36. Ke3 {[%clk 0:01:25.2]} 36... Kd7 {[%clk 0:01:15.7]} 37. Kd4 {[%clk
0:01:24.5]} 37... Kc6 {[%clk 0:01:12.7]} 38. a5 {[%clk 0:01:18.1]} 38... h6
{[%clk 0:00:38.9]} 39. Kc4 {[%clk 0:01:17]} 39... g6 {[%clk 0:00:24.8]} 40. fxg6
{[%clk 0:01:02.4]} 40... fxg6 {[%clk 0:00:25.3]} 41. Kxb4 {[%clk 0:01:03.6]}
41... h5 {[%clk 0:00:18.8]} 42. gxh5 {[%clk 0:01:03.7]} 42... gxh5 {[%clk
0:00:19.5]} 43. h4 {[%clk 0:01:04.7]} 43... Kc7 {[%clk 0:00:15.6]} 44. Kc5
{[%clk 0:01:05.1]} 1-0

[Event "*** Titled Tuesday Blitz"]
[Site "Chess.com"]
[Date "2020.01.07"]
[Round "2"]
[White "bascheyaro"]
[Black "VFernandezB"]
[Result "1-0"]
[WhiteElo "2682"]
[BlackElo "2329"]
[TimeControl "180+2"]
[EndTime "13:25:33 PST"]
[Termination "bascheyaro won by resignation"]

1. d4 {[%clk 0:03:01.9]} 1... Nf6 {[%clk 0:02:58.8]} 2. c4 {[%clk 0:02:58.8]}
2... g6 {[%clk 0:02:59.5]} 3. Nf3 {[%clk 0:03:00.4]} 3... Bg7 {[%clk 0:03:00.1]}
4. Nc3 {[%clk 0:03:02.3]} 4... d5 {[%clk 0:03:01.2]} 5. Bf4 {[%clk 0:03:03.8]}
5... O-O {[%clk 0:03:01.5]} 6. c5 {[%clk 0:03:05.4]} 6... b6 {[%clk 0:03:00.9]}
7. b4 {[%clk 0:03:06.6]} 7... a5 {[%clk 0:03:01.1]} 8. cxb6 {[%clk 0:03:08.1]}
8... cxb6 {[%clk 0:03:01.3]} 9. bxa5 {[%clk 0:03:09.5]} 9... bxa5 {[%clk
0:03:02.5]} 10. e3 {[%clk 0:03:10.8]} 10... Ba6 {[%clk 0:03:02.7]} 11. Bb5
{[%clk 0:03:11.1]} 11... Ne4 {[%clk 0:02:59.5]} 12. Bxa6 {[%clk 0:03:03.2]}
12... Nxc3 {[%clk 0:02:59.8]} 13. Qd3 {[%clk 0:03:04]} 13... Nxa6 {[%clk
0:02:56.5]} 14. Qxc3 {[%clk 0:03:05]} 14... Rc8 {[%clk 0:02:56.4]} 15. Qb3
{[%clk 0:02:59.8]} 15... Nb4 {[%clk 0:02:56.2]} 16. O-O {[%clk 0:03:00.6]} 16...
Qd7 {[%clk 0:02:46.7]} 17. a3 {[%clk 0:02:55.3]} 17... Na6 {[%clk 0:02:35.9]}
18. Rfc1 {[%clk 0:02:55.3]} 18... a4 {[%clk 0:02:36.4]} 19. Qd3 {[%clk
0:02:54.3]} 19... Qb7 {[%clk 0:02:35]} 20. Rcb1 {[%clk 0:02:54.2]} 20... Qc6
{[%clk 0:02:33.4]} 21. Ne5 {[%clk 0:02:48.1]} 21... Bxe5 {[%clk 0:02:33.4]} 22.
Bxe5 {[%clk 0:02:50]} 22... f6 {[%clk 0:02:34.5]} 23. Bg3 {[%clk 0:02:50.4]}
23... Qc4 {[%clk 0:02:34.7]} 24. Qd2 {[%clk 0:02:50.9]} 24... Qc2 {[%clk
0:02:31.1]} 25. Qa5 {[%clk 0:02:51.2]} 25... Qd3 {[%clk 0:02:27.7]} 26. Qxd5+
{[%clk 0:02:51.2]} 26... Kg7 {[%clk 0:02:29]} 27. h3 {[%clk 0:02:47.7]} 27...
Qc4 {[%clk 0:02:23]} 28. Qxc4 {[%clk 0:02:36.1]} 28... Rxc4 {[%clk 0:02:23]} 29.
Rb7 {[%clk 0:02:37.6]} 29... Kf7 {[%clk 0:02:21.6]} 30. Rab1 {[%clk 0:02:38.3]}
30... Rfc8 {[%clk 0:02:18.7]} 31. Bd6 {[%clk 0:02:36.4]} 31... Nc7 {[%clk
0:02:15.4]} 32. Bxc7 {[%clk 0:02:28.2]} 32... R8xc7 {[%clk 0:02:15.9]} 33. Rxc7
{[%clk 0:02:28.3]} 33... Rxc7 {[%clk 0:02:16.8]} 34. Rb4 {[%clk 0:02:29.9]}
34... Ra7 {[%clk 0:02:12.4]} 35. d5 {[%clk 0:02:31.1]} 35... Ke8 {[%clk
0:02:09.3]} 36. g4 {[%clk 0:02:31.7]} 36... Kd7 {[%clk 0:02:09.5]} 37. Kg2
{[%clk 0:02:33.1]} 37... Kd6 {[%clk 0:02:10]} 38. e4 {[%clk 0:02:34.3]} 38...
Ke5 {[%clk 0:02:08.9]} 39. Kf3 {[%clk 0:02:35.4]} 39... Rc7 {[%clk 0:02:03.6]}
40. Rxa4 {[%clk 0:02:35.9]} 40... Rc3+ {[%clk 0:02:04.5]} 41. Kg2 {[%clk
0:02:37.1]} 41... h5 {[%clk 0:02:03.1]} 42. gxh5 {[%clk 0:02:26.4]} 42... gxh5
{[%clk 0:02:04]} 43. h4 {[%clk 0:02:05.5]} 43... Kf4 {[%clk 0:01:59.8]} 44. Ra7
{[%clk 0:02:06.3]} 44... Kxe4 {[%clk 0:01:59.2]} 45. Rxe7+ {[%clk 0:02:07.3]}
45... Kxd5 {[%clk 0:02:00.6]} 46. Re3 {[%clk 0:02:08]} 46... Rc4 {[%clk
0:01:58.3]} 47. Kg3 {[%clk 0:02:08.6]} 47... Rg4+ {[%clk 0:01:58.6]} 48. Kh3
{[%clk 0:02:09.9]} 48... Rf4 {[%clk 0:01:59.7]} 49. f3 {[%clk 0:02:10.8]} 49...
f5 {[%clk 0:01:56.6]} 50. Rb3 {[%clk 0:02:06.8]} 50... Ra4 {[%clk 0:01:56.5]}
51. Kg3 {[%clk 0:02:07.9]} 51... f4+ {[%clk 0:01:56.6]} 52. Kg2 {[%clk
0:01:59.5]} 52... Rc4 {[%clk 0:01:55]} 53. Rb5+ {[%clk 0:01:59.2]} 53... Kd4
{[%clk 0:01:49.6]} 54. Rxh5 {[%clk 0:01:59.7]} 54... Rc2+ {[%clk 0:01:49.3]} 55.
Kh3 {[%clk 0:02:00.8]} 55... Ke3 {[%clk 0:01:50.3]} 56. Rb5 {[%clk 0:01:44.2]}
56... Kxf3 {[%clk 0:01:50.2]} 57. h5 {[%clk 0:01:45.6]} 57... Rc1 {[%clk
0:01:50.3]} 58. Kh4 {[%clk 0:01:46.4]} 58... Ra1 {[%clk 0:01:47.3]} 59. Rb3+
{[%clk 0:01:38.8]} 59... Ke4 {[%clk 0:01:23.6]} 60. h6 {[%clk 0:01:39.8]} 60...
Rh1+ {[%clk 0:01:22.5]} 61. Rh3 {[%clk 0:01:40.3]} 61... Rb1 {[%clk 0:01:19.5]}
62. h7 {[%clk 0:01:40.7]} 62... Rb8 {[%clk 0:01:20.1]} 63. Kg5 {[%clk
0:01:36.9]} 63... f3 {[%clk 0:01:20.9]} 64. h8=Q {[%clk 0:01:36.5]} 64... Rxh8
{[%clk 0:01:18.7]} 65. Rxh8 {[%clk 0:01:37]} 65... f2 {[%clk 0:01:20.6]} 66. Rf8
{[%clk 0:01:37.9]} 66... Ke3 {[%clk 0:01:21.9]} 67. a4 {[%clk 0:01:39.4]} 67...
Ke2 {[%clk 0:01:22.5]} 68. a5 {[%clk 0:01:40.7]} 1-0

[Event "*** Titled Tuesday Blitz"]
[Site "Chess.com"]
[Date "2020.01.07"]
[Round "2"]
[White "gmasterkiller"]
[Black "Hrant_ChessMood"]
[Result "1/2-1/2"]
[WhiteElo "2611"]
[BlackElo "2923"]
[TimeControl "180+2"]
[EndTime "13:25:41 PST"]
[Termination "Game drawn by repetition"]

1. e4 {[%clk 0:03:01.9]} 1... c6 {[%clk 0:02:32.9]} 2. d4 {[%clk 0:02:58.8]}
2... d5 {[%clk 0:02:32.7]} 3. e5 {[%clk 0:03:00.3]} 3... Bf5 {[%clk 0:02:32.1]}
4. Nf3 {[%clk 0:03:01.6]} 4... e6 {[%clk 0:02:33.7]} 5. Be2 {[%clk 0:03:03.1]}
5... Ne7 {[%clk 0:02:35.3]} 6. O-O {[%clk 0:03:04.3]} 6... c5 {[%clk 0:02:36.8]}
7. Be3 {[%clk 0:02:58.2]} 7... Nd7 {[%clk 0:02:35]} 8. c4 {[%clk 0:02:55.4]}
8... dxc4 {[%clk 0:02:31]} 9. Na3 {[%clk 0:02:55.4]} 9... Nd5 {[%clk 0:02:27]}
10. Nxc4 {[%clk 0:02:53]} 10... b5 {[%clk 0:02:11.7]} 11. Nd6+ {[%clk
0:02:46.7]} 11... Bxd6 {[%clk 0:02:12]} 12. exd6 {[%clk 0:02:48.6]} 12... c4
{[%clk 0:02:05.1]} 13. a4 {[%clk 0:02:49.5]} 13... a6 {[%clk 0:02:02.5]} 14.
axb5 {[%clk 0:02:50.6]} 14... axb5 {[%clk 0:02:03.1]} 15. Rxa8 {[%clk
0:02:52.5]} 15... Qxa8 {[%clk 0:02:03.4]} 16. Ne5 {[%clk 0:02:54.4]} 16... Qb7
{[%clk 0:01:53.6]} 17. Bf3 {[%clk 0:02:53.6]} 17... O-O {[%clk 0:01:49.2]} 18.
Qd2 {[%clk 0:02:52.1]} 18... f6 {[%clk 0:01:45.3]} 19. Nxd7 {[%clk 0:02:52.6]}
19... Qxd7 {[%clk 0:01:46.5]} 20. Bxd5 {[%clk 0:02:53.7]} 20... exd5 {[%clk
0:01:47.2]} 21. Bf4 {[%clk 0:02:49.9]} 21... Re8 {[%clk 0:01:39.5]} 22. Re1
{[%clk 0:02:50.2]} 22... Rxe1+ {[%clk 0:01:31.3]} 23. Qxe1 {[%clk 0:02:50.5]}
23... Kf7 {[%clk 0:01:30.9]} 24. h3 {[%clk 0:02:51.2]} 24... g5 {[%clk
0:01:12.2]} 25. Bh2 {[%clk 0:02:45.1]} 25... h5 {[%clk 0:01:05.3]} 26. f3 {[%clk
0:02:32.9]} 26... h4 {[%clk 0:01:03.6]} 27. Qa5 {[%clk 0:02:28.8]} 27... Kg6
{[%clk 0:01:01.8]} 28. Kf2 {[%clk 0:02:07.4]} 28... Qe8 {[%clk 0:00:51.1]} 29.
Qe1 {[%clk 0:02:01.6]} 29... Qxe1+ {[%clk 0:00:45.8]} 30. Kxe1 {[%clk
0:02:03.5]} 30... b4 {[%clk 0:00:47.6]} 31. Kd2 {[%clk 0:02:00.3]} 31... Kf7
{[%clk 0:00:48.4]} 32. f4 {[%clk 0:02:00.7]} 32... Ke6 {[%clk 0:00:29.5]} 33.
fxg5 {[%clk 0:02:01.8]} 33... fxg5 {[%clk 0:00:31.4]} 34. Bg1 {[%clk 0:01:49.8]}
34... Kxd6 {[%clk 0:00:19.6]} 35. Be3 {[%clk 0:01:50.1]} 35... g4 {[%clk
0:00:14.5]} 36. hxg4 {[%clk 0:01:50.8]} 36... Bxg4 {[%clk 0:00:16.4]} 37. Bf2
{[%clk 0:01:46.9]} 37... Kc6 {[%clk 0:00:17.7]} 38. Bxh4 {[%clk 0:01:45.4]}
38... Kb5 {[%clk 0:00:19.3]} 39. Kc1 {[%clk 0:01:25.1]} 39... Ka4 {[%clk
0:00:20]} 40. Be1 {[%clk 0:01:13.6]} 40... Bf5 {[%clk 0:00:20.1]} 41. g3 {[%clk
0:01:13.8]} 41... Kb3 {[%clk 0:00:17]} 42. Bd2 {[%clk 0:01:04.5]} 42... Bg4
{[%clk 0:00:16.1]} 43. Be1 {[%clk 0:01:03.5]} 43... Be2 {[%clk 0:00:17.1]} 44.
Bd2 {[%clk 0:01:03.1]} 44... Bd3 {[%clk 0:00:18.6]} 45. Be1 {[%clk 0:01:04.3]}
45... Bh7 {[%clk 0:00:13.8]} 46. g4 {[%clk 0:01:02.3]} 46... Bg6 {[%clk
0:00:14.5]} 47. g5 {[%clk 0:01:03.6]} 47... Be4 {[%clk 0:00:16]} 48. Bd2 {[%clk
0:01:04.5]} 48... Bg6 {[%clk 0:00:17.1]} 49. Be1 {[%clk 0:01:05.8]} 49... Bh7
{[%clk 0:00:18]} 50. Bd2 {[%clk 0:01:06.4]} 50... Bg6 {[%clk 0:00:17.7]} 51. Be1
{[%clk 0:01:07.7]} 1/2-1/2